bitfinex/quotes_BTCUSD_20251113
["timestamp","ask_amount","ask_price","bid_price","bid_amount"]
[1763067018391,0.01891652,98439.0,98429.0,0.0499]
[1763067018595,0.00046396,98440.0,98429.0,0.0499]
[1763067018803,0.00046396,98440.0,98430.0,0.57587142]
[1763067019008,0.00046396,98440.0,98439.0,0.06075]
[1763067019214,0.00046396,98440.0,98429.0,0.0499]
[1763067019427,0.00046396,98440.0,98430.0,0.09816915]
[1763067019628,0.00046396,98440.0,98430.0,0.67404057]
[1763067020035,0.00146396,98440.0,98430.0,0.67504057]
[1763067020380,0.00146396,98440.0,98430.0,0.001]
[1763067020586,0.00046396,98440.0,98423.0,0.0499]
[1763067020785,0.00046396,98440.0,98430.0,0.001]
[1763067021362,0.20363488,98440.0,98430.0,0.001]
[1763067021562,0.00046396,98440.0,98430.0,0.001]
[1763067022455,0.00046396,98440.0,98423.0,0.0499]
[1763067022456,0.00046396,98440.0,98439.0,0.06075]
[1763067022872,0.00046396,98440.0,98430.0,0.48365142]
[1763067023076,0.00046396,98440.0,98439.0,0.15891915]
[1763067023484,0.00046396,98440.0,98439.0,0.09816915]
[1763067023690,0.00046396,98440.0,98432.0,0.04341874]
[1763067023910,0.00046396,98440.0,98439.0,0.16091915]
[1763067024130,0.00046396,98440.0,98439.0,0.10016915]
[1763067024341,0.00046396,98440.0,98439.0,0.09816915]
[1763067024540,0.00146396,98440.0,98439.0,0.09816915]
[1763067025720,0.00146396,98440.0,98439.0,0.10116915]
[1763067026880,0.00146396,98440.0,98439.0,0.003]
[1763067027320,0.01015331,98490.0,98448.0,0.06075]
[1763067027522,0.20307998,98484.0,98468.0,0.0499]
[1763067027729,0.20308643,98481.0,98451.0,0.09222]
[1763067027942,0.22203535,98480.0,98451.0,0.09222]
[1763067028159,0.20309294,98478.0,98451.0,0.09222]
[1763067028365,0.01894756,98477.0,98451.0,0.09222]
[1763067028567,0.01894756,98476.0,98451.0,0.09222]
[1763067028771,0.01894756,98475.0,98448.0,0.000139]
[1763067028992,0.01894756,98474.0,98471.0,0.09816915]
[1763067029202,0.01894756,98473.0,98471.0,0.09816915]
[1763067029378,0.20302704,98510.0,98491.0,0.0499]
[1763067029693,0.01895438,98509.0,98491.0,0.0479]
[1763067029879,0.01895438,98508.0,98491.0,0.0469]
[1763067030096,0.01895438,98507.0,98491.0,0.0469]
[1763067030403,0.01895438,98506.0,98491.0,0.0469]
[1763067030537,0.01895438,98505.0,98493.0,0.09816915]
[1763067030738,0.003,98528.0,98494.0,0.09816915]
[1763067030739,0.01895438,98504.0,98494.0,0.09816915]
[1763067030951,0.21313511,98530.0,98494.0,0.09816915]
[1763067031171,0.20299298,98526.0,98495.0,0.09153]
[1763067031519,0.20299936,98523.0,98495.0,0.09153]
[1763067031729,0.323,98521.0,98495.0,0.09153]
[1763067032010,0.01894579,98520.0,98495.0,0.09153]
[1763067032183,0.01894579,98519.0,98500.0,0.48365142]
[1763067032385,0.22349341,98539.0,98500.0,0.48365142]
[1763067032592,0.00568802,98538.0,98509.0,0.09816915]
[1763067032844,0.01014919,98530.0,98494.0,0.09816915]
[1763067033044,0.2,98520.0,98491.0,0.047039]
[1763067033249,0.323,98519.0,98494.0,0.09816915]
[1763067033423,0.323,98519.0,98491.0,0.047039]
[1763067033629,0.68365142,98510.0,98491.0,0.000139]
[1763067033821,0.48365142,98501.0,98491.0,0.000139]
[1763067034032,0.003,98492.0,98491.0,0.000139]
[1763067034649,0.48365142,98501.0,98491.0,0.000139]
[1763067034851,0.323,98500.0,98491.0,0.000139]
[1763067035016,0.323,98504.0,98491.0,0.000139]
[1763067035221,0.52603803,98504.0,98491.0,0.000139]
[1763067035463,0.323,98504.0,98491.0,0.001139]
[1763067036028,0.323,98509.0,98491.0,0.000139]
[1763067036235,0.52602769,98509.0,98491.0,0.000139]
[1763067036453,0.20303802,98504.0,98491.0,0.000139]
[1763067036629,0.323,98509.0,98491.0,0.000139]
[1763067036834,0.323,98507.0,98491.0,0.000139]
[1763067037076,0.324,98509.0,98491.0,0.000139]
[1763067037893,0.48365142,98501.0,98491.0,0.000139]
[1763067038402,0.003,98508.0,98491.0,0.000139]
[1763067038604,0.326,98508.0,98491.0,0.000139]
[1763067038786,0.20304156,98502.0,98491.0,0.000139]
[1763067039118,0.01015022,98520.0,98491.0,0.000139]
[1763067039119,0.323,98509.0,98491.0,0.000139]
[1763067039321,0.323,98509.0,98491.0,0.001139]
[1763067039522,0.323,98509.0,98491.0,0.002139]
[1763067039731,0.323,98509.0,98491.0,0.001139]
[1763067039929,0.20299172,98527.0,98492.0,0.18969915]
[1763067040332,0.003,98529.0,98493.0,0.09153]
[1763067040694,0.21014816,98540.0,98494.0,0.04505]
[1763067040695,0.62130855,98540.0,98494.0,0.04505]
[1763067040928,0.00868155,98539.0,98494.0,0.04505]
[1763067041130,0.60816039,98530.0,98495.0,0.09153]
[1763067041318,0.80816039,98520.0,98491.0,0.000139]
[1763067041515,0.80816039,98520.0,98492.0,0.09816915]
[1763067041516,0.323,98519.0,98492.0,0.09816915]
[1763067041723,0.20303809,98504.0,98491.0,0.001139]
[1763067042069,0.20304023,98503.0,98491.0,0.000139]
[1763067042508,0.20304206,98502.0,98491.0,0.000139]
[1763067042722,0.323,98509.0,98491.0,0.000139]
[1763067042927,0.52602882,98509.0,98492.0,0.001]
[1763067043136,0.323,98509.0,98491.0,0.000139]
[1763067043288,0.323,98509.0,98491.0,0.001139]
[1763067043752,0.323,98513.0,98491.0,0.001139]
[1763067044059,0.81830958,98530.0,98492.0,0.09153]
[1763067044264,0.20299233,98526.0,98492.0,0.09153]
[1763067044458,0.60816039,98520.0,98493.0,0.09816915]
[1763067044670,0.01890865,98519.0,98493.0,0.09816915]
[1763067044880,0.001,98509.0,98494.0,0.09153]
[1763067045290,0.2029909,98527.0,98494.0,0.09153]
[1763067045494,0.0199049,98526.0,98494.0,0.09153]
[1763067045704,0.0189049,98525.0,98494.0,0.09153]
[1763067045920,0.001,98526.0,98494.0,0.09153]
[1763067046123,0.81830958,98530.0,98494.0,0.09353]
[1763067046332,0.003,98526.0,98494.0,0.09453]
[1763067046495,0.20299983,98523.0,98494.0,0.09453]
[1763067046697,1.01116691,98520.0,98494.0,0.003]
[1763067046958,0.01891118,98519.0,98494.0,0.003]
[1763067047100,0.60816039,98510.0,98494.0,0.003]
[1763067047303,0.2,98520.0,98494.0,0.001]
[1763067047304,0.01892794,98509.0,98494.0,0.001]
[1763067047571,0.20302744,98509.0,98491.0,0.000139]
[1763067047781,0.80816039,98520.0,98491.0,0.000139]
[1763067047782,0.60816039,98501.0,98491.0,0.000139]
[1763067047985,0.326,98519.0,98491.0,0.000139]
[1763067048191,0.60816039,98510.0,98494.0,0.001]
[1763067048334,0.20303302,98507.0,98494.0,0.001]
[1763067048554,0.01892869,98506.0,98491.0,0.000139]
[1763067048781,0.20606217,98492.0,98491.0,0.000139]
[1763067048977,0.22499086,98492.0,98491.0,0.000139]
[1763067049813,0.02192869,98492.0,98491.0,0.000139]
[1763067050203,0.01892869,98492.0,98491.0,0.000139]
[1763067050394,0.60816039,98520.0,98494.0,0.001]
[1763067050616,0.60816039,98520.0,98491.0,0.000139]
[1763067050617,0.20301798,98514.0,98491.0,0.000139]
[1763067050824,0.20302651,98510.0,98491.0,0.000139]
[1763067051025,0.01895482,98509.0,98491.0,0.000139]
[1763067051227,0.2,98520.0,98491.0,0.000139]
[1763067051228,0.01895482,98508.0,98491.0,0.000139]
[1763067051437,0.01895482,98507.0,98491.0,0.091669]
[1763067051638,0.323,98519.0,98491.0,0.000139]
[1763067051639,0.01895482,98506.0,98491.0,0.000139]
[1763067051851,0.01895482,98505.0,98491.0,0.000139]
[1763067052056,0.326,98519.0,98491.0,0.001139]
[1763067052300,0.20301581,98515.0,98491.0,0.001139]
[1763067052496,0.01896413,98514.0,98491.0,0.001139]
[1763067052738,0.20304226,98502.0,98491.0,0.001139]
[1763067052946,0.2030272,98509.0,98491.0,0.001139]
[1763067053169,0.60816039,98510.0,98491.0,0.001139]
[1763067053361,0.20302224,98512.0,98491.0,0.000139]
[1763067053552,0.60816039,98510.0,98491.0,0.002139]
[1763067053742,0.81118704,98510.0,98491.0,0.003139]
[1763067053949,0.81118704,98510.0,98491.0,0.001139]
[1763067054300,0.20302778,98509.0,98491.0,0.001139]
[1763067054502,0.20306089,98493.0,98491.0,0.000139]
[1763067054825,0.02769432,98492.0,98491.0,0.001139]
[1763067054952,0.02769432,98492.0,98491.0,0.000139]
[1763067055341,0.04957937,98492.0,98491.0,0.000139]
[1763067055605,0.02769432,98492.0,98491.0,0.000139]
[1763067055824,0.02469432,98492.0,98491.0,0.000139]
[1763067056436,0.02769432,98492.0,98491.0,0.001139]
[1763067056638,0.02769432,98492.0,98491.0,0.000139]
[1763067056853,0.05059162,98492.0,98491.0,0.000139]
[1763067057048,0.05059162,98492.0,98491.0,0.001139]
[1763067057263,0.05059162,98492.0,98491.0,0.000139]
[1763067057264,0.44677901,98492.0,98491.0,0.000139]
[1763067057543,0.323,98479.0,98440.0,0.0499]
[1763067057745,0.60816039,98470.0,98441.0,0.18969915]
[1763067057945,0.02469432,98469.0,98441.0,0.09816915]
[1763067058177,0.02469432,98468.0,98442.0,0.09153]
[1763067058403,0.01899281,98467.0,98442.0,0.09153]
[1763067058616,0.60816039,98470.0,98442.0,0.09153]
[1763067058815,0.01900887,98469.0,98442.0,0.09153]
[1763067059013,0.20312191,98464.0,98440.0,0.0499]
[1763067059256,0.61831576,98470.0,98440.0,0.0499]
[1763067059257,0.00286,98468.0,98440.0,0.0499]
[1763067059481,0.20312938,98460.0,98440.0,0.0499]
[1763067059681,0.20314072,98454.0,98440.0,0.001]
[1763067059904,0.60816039,98460.0,98435.0,0.04505]
[1763067060108,0.019002,98459.0,98435.0,0.04505]
[1763067060291,0.02188583,98468.0,98440.0,0.002]
[1763067060509,0.34770116,98467.0,98441.0,0.09363]
[1763067060701,0.04658699,98466.0,98440.0,0.001]
[1763067060861,0.02470116,98465.0,98440.0,0.003]
[1763067061062,0.323,98469.0,98441.0,0.09363]
[1763067061063,0.01899976,98464.0,98441.0,0.09363]
[1763067061273,0.60816039,98480.0,98451.0,0.09816915]
[1763067061439,0.02469145,98478.0,98463.0,0.04914]
[1763067061638,0.01899118,98477.0,98463.0,0.04914]
[1763067061835,0.00013918,98479.0,98463.0,0.04914]
[1763067062050,0.00013918,98479.0,98455.0,0.04914]
[1763067062265,0.20309982,98474.0,98455.0,0.04914]
[1763067062488,0.20310336,98473.0,98455.0,0.04914]
[1763067062697,0.00286,98478.0,98423.0,0.09363]
[1763067062698,0.20314935,98450.0,98423.0,0.09363]
[1763067062920,0.20314935,98450.0,98441.0,0.001]
[1763067062921,0.20316531,98442.0,98441.0,0.001]
[1763067063341,0.20314727,98451.0,98429.0,0.04914]
[1763067063542,0.20316162,98444.0,98429.0,0.04914]
[1763067063789,0.323,98452.0,98429.0,0.04914]
[1763067064007,0.00013913,98452.0,98430.0,0.19179915]
[1763067064206,0.00013913,98452.0,98441.0,0.003]
[1763067064430,0.00013913,98452.0,98451.0,0.04914]
[1763067064635,0.00013913,98452.0,98441.0,0.003]
[1763067065075,0.60816039,98451.0,98441.0,0.003]
[1763067065290,0.60816039,98451.0,98429.0,0.05014]
[1763067065453,0.00013913,98452.0,98429.0,0.05014]
[1763067065614,0.60816039,98450.0,98429.0,0.05114]
[1763067065845,0.20316375,98443.0,98429.0,0.04014]
[1763067066045,0.60816039,98450.0,98429.0,0.03914]
[1763067066340,0.01286,98451.0,98441.0,0.002]
[1763067066601,0.20316502,98443.0,98441.0,0.001]
[1763067066833,0.01286,98442.0,98441.0,0.001]
[1763067067034,0.2,98440.0,98420.0,0.0004]
[1763067067239,0.323,98439.0,98429.0,0.001]
[1763067067779,0.323,98439.0,98428.0,0.0451]
[1763067067989,0.002,98442.0,98429.0,0.09816915]
[1763067068215,0.002,98442.0,98429.0,0.19146915]
[1763067068445,0.002,98442.0,98441.0,0.001]
[1763067068809,0.002,98442.0,98428.0,0.0451]
[1763067069023,0.002,98442.0,98430.0,0.09816915]
[1763067069229,0.20314098,98454.0,98428.0,0.0451]
[1763067069430,0.60816039,98450.0,98428.0,0.0451]
[1763067069629,0.60816039,98450.0,98428.0,0.001]
[1763067069830,0.02572,98451.0,98428.0,0.001]
[1763067069831,0.60816039,98440.0,98428.0,0.001]
[1763067070031,0.20317357,98438.0,98420.0,0.0004]
[1763067070302,0.60816039,98440.0,98420.0,0.0004]
[1763067070502,0.01286,98449.0,98420.0,0.0004]
[1763067070622,0.01386,98451.0,98421.0,0.19146915]
[1763067070826,0.01286,98451.0,98421.0,0.19146915]
[1763067071027,0.01286,98451.0,98422.0,0.0933]
[1763067071639,0.01286,98451.0,98423.0,0.19146915]
[1763067071965,0.01286,98451.0,98424.0,0.0933]
[1763067072176,0.01286,98458.0,98450.0,0.0451]
[1763067072380,0.20308161,98483.0,98450.0,0.0451]
[1763067072381,0.01286,98473.0,98451.0,0.06453]
[1763067072585,0.01286,98481.0,98451.0,0.45871874]
[1763067072904,0.01286,98481.0,98451.0,0.4153]
[1763067073108,0.20311455,98467.0,98450.0,0.0451]
[1763067073444,0.60816039,98470.0,98450.0,0.0471]
[1763067073596,0.60816039,98470.0,98450.0,0.002]
[1763067073810,0.61831576,98470.0,98429.0,0.04341874]
[1763067074024,0.20311626,98466.0,98443.0,0.09816915]
[1763067074220,0.20311626,98466.0,98450.0,0.002]
[1763067074620,0.81126824,98470.0,98451.0,0.003]
[1763067074621,0.60816039,98470.0,98451.0,0.003]
[1763067074841,0.01386,98471.0,98451.0,0.003]
[1763067075086,0.60816039,98470.0,98451.0,0.0451]
[1763067075496,0.323,98474.0,98451.0,0.0451]
[1763067075849,0.323,98479.0,98451.0,0.1384]
[1763067076090,0.2030915,98478.0,98451.0,0.1384]
[1763067076288,0.323,98479.0,98451.0,0.1384]
[1763067076289,0.323,98479.0,98451.0,0.0451]
[1763067076486,0.20310528,98472.0,98451.0,0.1404]
[1763067076689,0.20310048,98474.0,98451.0,0.1404]
[1763067076916,0.20310202,98473.0,98451.0,0.1414]
[1763067077244,0.323,98479.0,98451.0,0.1414]
[1763067077675,0.01399913,98452.0,98451.0,0.003]
[1763067078150,0.01399913,98452.0,98451.0,0.002]
[1763067078351,0.01015744,98450.0,98420.0,0.0004]
[1763067078553,0.20320385,98424.0,98420.0,0.0004]
[1763067078757,0.20320684,98422.0,98420.0,0.0004]
[1763067078978,0.20320754,98422.0,98420.0,0.0004]
[1763067079183,0.12686281,98422.0,98420.0,0.0004]
[1763067079390,0.01186,98421.0,98420.0,0.0004]
[1763067079593,0.01186,98421.0,98400.0,0.0004]
[1763067079830,0.323,98427.0,98401.0,0.09816915]
[1763067080044,0.60816039,98420.0,98401.0,0.09816915]
[1763067080209,0.00013906,98421.0,98401.0,0.09816915]
[1763067080406,0.00013906,98421.0,98400.0,0.0004]
[1763067080614,0.00013906,98421.0,98420.0,0.001]
[1763067081913,0.00013906,98421.0,98420.0,0.002]
[1763067082122,0.00013906,98421.0,98419.0,0.0451]
[1763067082333,0.00013906,98421.0,98420.0,0.42116915]
[1763067082537,0.00013906,98421.0,98420.0,0.46658789]
[1763067082752,0.00013906,98421.0,98420.0,0.46458789]
[1763067082959,0.00013906,98421.0,98420.0,0.6835381]
[1763067083165,0.00013906,98421.0,98420.0,0.6895381]
[1763067083368,0.00013906,98421.0,98420.0,0.48583142]
[1763067083681,0.00013906,98421.0,98420.0,0.48283142]
[1763067084506,0.00013906,98421.0,98420.0,0.55565882]
[1763067084728,0.01186,98498.0,98451.0,0.36641874]
[1763067084939,0.00013947,98498.0,98488.0,0.0451]
[1763067085146,0.00013947,98498.0,98497.0,0.06453]
[1763067085594,0.00013947,98498.0,98495.0,0.09816915]
[1763067085768,0.00013947,98498.0,98488.0,0.0451]
[1763067085769,0.00013947,98498.0,98496.0,0.09816915]
[1763067086167,0.00013947,98498.0,98488.0,0.0451]
[1763067086366,0.00013947,98498.0,98497.0,0.003]
[1763067086656,0.00013947,98498.0,98478.0,0.0451]
[1763067086838,0.00013947,98498.0,98480.0,0.09816915]
[1763067087032,0.20319105,98498.0,98478.0,0.0451]
[1763067087342,0.00013947,98498.0,98497.0,0.003]
[1763067088343,0.00013947,98498.0,98476.0,0.1384]
[1763067088547,0.00013947,98498.0,98496.0,0.003]
[1763067088972,0.00013947,98498.0,98480.0,0.10016915]
[1763067089180,0.00013947,98498.0,98497.0,0.002]
[1763067089181,0.20319126,98498.0,98497.0,0.002]
[1763067089352,0.20319126,98498.0,98457.0,0.0451]
[1763067089353,0.33499947,98498.0,98457.0,0.0451]
[1763067089540,0.01894147,98497.0,98476.0,0.002]
[1763067089741,0.01894147,98497.0,98496.0,0.002]
[1763067090154,0.03080147,98497.0,98476.0,0.04811]
[1763067090355,0.60816039,98490.0,98476.0,0.04811]
[1763067090939,0.60816039,98490.0,98473.0,0.04811]
[1763067091463,0.2030799,98484.0,98458.0,0.0933]
[1763067091658,0.20307392,98487.0,98467.0,0.09816915]
[1763067091879,0.60816039,98490.0,98467.0,0.09816915]
[1763067092487,0.60816039,98490.0,98458.0,0.0933]
[1763067092683,0.6183137,98490.0,98467.0,0.09816915]
[1763067092885,0.20308202,98483.0,98467.0,0.09816915]
[1763067093134,0.60816039,98480.0,98467.0,0.001]
[1763067094591,0.60816039,98480.0,98458.0,0.001]
[1763067094804,0.60816039,98480.0,98457.0,0.0451]
[1763067095171,0.60816039,98480.0,98467.0,0.004]
[1763067095371,0.60816039,98480.0,98457.0,0.0451]
[1763067095372,0.01015228,98500.0,98458.0,0.09286]
[1763067095581,0.02462736,98497.0,98467.0,0.09816915]
[1763067095803,0.60816039,98490.0,98458.0,0.09586]
[1763067096011,0.00013947,98498.0,98468.0,0.09816915]
[1763067096437,0.00013947,98498.0,98469.0,0.09286]
[1763067096642,0.00013947,98498.0,98457.0,0.0451]
[1763067096643,0.60816039,98480.0,98457.0,0.0451]
[1763067096847,0.60816039,98480.0,98450.0,0.0451]
[1763067096848,0.61831473,98480.0,98450.0,0.0451]
[1763067097052,0.60816039,98470.0,98450.0,0.0451]
[1763067097258,0.20313097,98459.0,98440.0,0.09816915]
[1763067097469,0.20312454,98462.0,98440.0,0.09816915]
[1763067097668,0.20312001,98464.0,98440.0,0.09816915]
[1763067097876,0.61831576,98470.0,98442.0,0.09816915]
[1763067098082,0.20311828,98465.0,98442.0,0.09816915]
[1763067098287,0.61831576,98470.0,98442.0,0.09816915]
[1763067098496,0.61831576,98470.0,98440.0,0.001]
[1763067098497,0.60816039,98460.0,98440.0,0.001]
[1763067098700,0.20313741,98456.0,98440.0,0.001]
[1763067098906,0.20313734,98456.0,98440.0,0.001]
[1763067099120,0.20313397,98458.0,98440.0,0.001]
[1763067099325,0.60816039,98460.0,98439.0,0.04811]
[1763067099731,0.00013939,98465.0,98441.0,0.09816915]
[1763067100572,0.00013939,98465.0,98442.0,0.09286]
[1763067100783,0.00013939,98465.0,98464.0,0.06201]
[1763067101191,0.00013939,98465.0,98464.0,0.15487]
[1763067101391,0.00013939,98465.0,98456.0,0.09816915]
[1763067101602,0.00013939,98465.0,98464.0,0.11012]
[1763067101935,0.00013939,98465.0,98464.0,0.11112]
[1763067102140,0.00013939,98465.0,98464.0,0.11012]
[1763067102704,0.00013939,98465.0,98464.0,0.04811]
[1763067102899,0.00013939,98465.0,98464.0,0.05011]
[1763067103397,0.00013939,98465.0,98464.0,0.14097]
[1763067103846,0.00113939,98465.0,98464.0,0.05211]
[1763067104194,0.00113939,98465.0,98464.0,0.05311]
[1763067104596,0.00113939,98465.0,98464.0,0.05211]
[1763067104807,0.00113939,98465.0,98464.0,0.09852874]
[1763067104999,0.00013939,98465.0,98464.0,0.05111]
[1763067105211,0.00013939,98465.0,98464.0,0.05411]
[1763067105600,0.00013939,98465.0,98464.0,0.05111]
[1763067105861,0.00013939,98465.0,98464.0,0.04811]
[1763067106157,0.00013939,98465.0,98464.0,0.05511]
[1763067106572,0.00013939,98465.0,98464.0,0.05211]
[1763067107026,0.00013939,98465.0,98464.0,0.05511]
[1763067107226,0.00013939,98465.0,98464.0,0.09452874]
[1763067107374,0.00013939,98465.0,98464.0,0.09752874]
[1763067108164,0.00013939,98465.0,98464.0,0.09152874]
[1763067108569,0.00013939,98465.0,98464.0,0.09952874]
[1763067109312,0.00013939,98465.0,98464.0,0.05611]
[1763067110898,0.00013939,98465.0,98464.0,0.05211]
[1763067111119,0.00013939,98465.0,98464.0,0.05111]
[1763067111302,0.00013939,98465.0,98464.0,0.09752874]
[1763067111510,0.00013939,98465.0,98464.0,0.09452874]
[1763067111710,0.00013939,98465.0,98464.0,0.09752874]
[1763067111868,0.00013939,98465.0,98464.0,0.09452874]
[1763067112324,0.00013939,98465.0,98464.0,0.09752874]
[1763067113118,0.01186,98536.0,98490.0,0.01015331]
[1763067113323,0.01899698,98535.0,98529.0,0.04811]
[1763067113544,0.01199942,98536.0,98529.0,0.04811]
[1763067113743,0.01199942,98536.0,98502.0,0.09816915]
[1763067113744,0.01898759,98535.0,98515.0,0.04811]
[1763067113914,0.4839135,98530.0,98515.0,0.04811]
[1763067114109,0.01199942,98536.0,98515.0,0.04811]
[1763067114315,0.22196248,98535.0,98515.0,0.04811]
[1763067114521,0.4839135,98530.0,98515.0,0.04811]
[1763067114962,0.4839135,98530.0,98502.0,0.19102915]
[1763067115169,0.2030003,98523.0,98502.0,0.19102915]
[1763067115478,0.4839135,98530.0,98500.0,0.04811]
[1763067115479,0.68691977,98520.0,98500.0,0.04811]
[1763067115680,0.4839135,98510.0,98492.0,0.09286]
[1763067115877,0.4839135,98510.0,98495.0,0.04811]
[1763067116302,0.4839135,98510.0,98480.0,0.04811]
[1763067116443,0.4839135,98500.0,98484.0,0.09816915]
[1763067117293,0.20303135,98507.0,98480.0,0.04811]
[1763067117495,0.4839135,98500.0,98480.0,0.04811]
[1763067117694,0.4839135,98500.0,98479.0,0.04811]
[1763067117869,0.4839135,98500.0,98484.0,0.002]
[1763067118070,0.4839135,98500.0,98484.0,0.003]
[1763067118275,0.4839135,98500.0,98479.0,0.04811]
[1763067118836,0.4839135,98490.0,98480.0,0.001]
[1763067119756,0.4839135,98500.0,98480.0,0.001]
[1763067119962,0.4839135,98490.0,98480.0,0.001]
[1763067120170,0.00013936,98507.0,98473.0,0.04811]
[1763067120171,0.00013936,98507.0,98481.0,0.09387]
[1763067120390,0.00013936,98507.0,98458.0,0.323]
[1763067120391,0.20308702,98480.0,98458.0,0.323]
[1763067120587,0.20308702,98480.0,98454.0,0.09387]
[1763067120588,0.01186,98465.0,98457.0,0.0477]
[1763067121238,0.01186,98458.0,98440.0,0.0477]
[1763067121439,0.01186,98458.0,98419.0,0.0477]
[1763067121440,0.4839135,98450.0,98423.0,0.09387]
[1763067121653,0.4839135,98450.0,98419.0,0.0477]
[1763067121654,0.20317851,98436.0,98419.0,0.0477]
[1763067121827,0.4839135,98433.0,98427.0,0.00046396]
[1763067122255,0.01186,98428.0,98427.0,0.00046396]
[1763067123598,0.01186,98436.0,98427.0,0.00046396]
[1763067123754,0.01186,98428.0,98427.0,0.00046396]
[1763067123955,0.21605421,98428.0,98427.0,0.00046396]
[1763067124394,0.01286,98428.0,98427.0,0.00046396]
[1763067125482,0.21605421,98428.0,98427.0,0.00046396]
[1763067125679,0.53905421,98428.0,98427.0,0.00046396]
[1763067126299,0.60708403,98428.0,98427.0,0.00046396]
[1763067126496,0.62883102,98428.0,98427.0,0.00046396]
[1763067127197,0.56365801,98428.0,98427.0,0.00046396]
[1763067127423,0.60037156,98428.0,98427.0,0.00046396]
[1763067127651,0.60637156,98428.0,98427.0,0.00046396]
[1763067128313,0.35675861,98428.0,98427.0,0.00046396]
[1763067128762,0.35375861,98428.0,98427.0,0.00046396]
[1763067129206,0.35575861,98428.0,98427.0,0.00046396]
[1763067129430,0.35775861,98428.0,98427.0,0.00046396]
[1763067129969,0.33886,98428.0,98427.0,0.00046396]
[1763067130172,0.01586,98428.0,98427.0,0.00046396]
[1763067131194,0.01386,98428.0,98427.0,0.00046396]
[1763067131409,0.33686,98428.0,98427.0,0.00046396]
[1763067131944,0.33486,98428.0,98427.0,0.00046396]
[1763067132208,0.33686,98428.0,98427.0,0.00046396]
[1763067132661,0.33786,98428.0,98427.0,0.00046396]
[1763067132890,0.01486,98428.0,98427.0,0.00046396]
[1763067133126,0.002,98428.0,98427.0,0.00046396]
[1763067133358,0.004,98428.0,98427.0,0.00046396]
[1763067133562,0.002,98428.0,98427.0,0.00046396]
[1763067133693,0.001,98428.0,98427.0,0.00046396]
[1763067133906,0.01286,98428.0,98427.0,0.00046396]
[1763067134117,0.01386,98428.0,98427.0,0.00046396]
[1763067135077,0.33586,98428.0,98427.0,0.00046396]
[1763067135251,0.33686,98428.0,98427.0,0.00046396]
[1763067135450,0.33486,98428.0,98427.0,0.00046396]
[1763067135855,0.33586,98428.0,98427.0,0.00046396]
[1763067136053,0.2,98420.0,98400.0,0.0004]
[1763067136260,0.21510996,98401.0,98400.0,0.0004]
[1763067136491,0.53810996,98401.0,98400.0,1e-08]
[1763067136749,0.60036328,98401.0,98400.0,1e-08]
[1763067136995,0.60600115,98401.0,98400.0,1e-08]
[1763067137224,0.60036328,98401.0,98400.0,1e-08]
[1763067137458,0.63304761,98401.0,98400.0,0.00100001]
[1763067137918,0.60036328,98401.0,98400.0,0.00100001]
[1763067138606,0.63304761,98401.0,98400.0,1e-08]
[1763067138954,0.60336328,98401.0,98400.0,1e-08]
[1763067139153,0.60533653,98401.0,98400.0,1e-08]
[1763067139354,0.60033653,98401.0,98400.0,1e-08]
[1763067139799,0.60533653,98401.0,98400.0,1e-08]
[1763067140008,0.63602086,98401.0,98400.0,1e-08]
[1763067140206,0.6386529,98401.0,98400.0,1e-08]
[1763067140413,0.60533653,98401.0,98400.0,1e-08]
[1763067140625,0.63802086,98401.0,98400.0,1e-08]
[1763067140868,0.66313786,98401.0,98400.0,1e-08]
[1763067141060,2.66876819,98401.0,98400.0,1e-08]
[1763067141679,2.66876819,98401.0,98390.0,1e-08]
[1763067141680,2.58154936,98391.0,98390.0,1e-08]
[1763067141898,2.60598752,98391.0,98390.0,1e-08]
[1763067142093,2.66378885,98391.0,98390.0,1e-08]
[1763067142407,0.66378885,98391.0,98390.0,1e-08]
[1763067142767,0.65815852,98391.0,98390.0,1e-08]
[1763067142970,0.27735719,98391.0,98390.0,1e-08]
[1763067143174,0.25854936,98391.0,98390.0,1e-08]
[1763067143393,0.01286,98391.0,98390.0,1e-08]
[1763067143565,0.08896307,98391.0,98390.0,1e-08]
[1763067143772,0.11408007,98391.0,98390.0,1e-08]
[1763067143964,0.10120199,98391.0,98390.0,1e-08]
[1763067144188,0.07608499,98391.0,98390.0,1e-08]
[1763067144615,0.10876932,98391.0,98390.0,1e-08]
[1763067145216,0.07608499,98391.0,98390.0,1e-08]
[1763067145415,0.03266625,98391.0,98390.0,1e-08]
[1763067145842,0.002,98391.0,98390.0,1e-08]
[1763067146980,0.001,98391.0,98390.0,1e-08]
[1763067147716,0.4839135,98400.0,98390.0,1e-08]
[1763067147923,0.323,98407.0,98390.0,1e-08]
[1763067148145,0.01888834,98406.0,98390.0,1e-08]
[1763067148350,0.01888834,98405.0,98390.0,1e-08]
[1763067148476,0.01888834,98404.0,98390.0,0.00200001]
[1763067148676,0.01888834,98403.0,98390.0,0.00200001]
[1763067148872,0.01891499,98402.0,98390.0,0.00200001]
[1763067149110,0.01891499,98401.0,98390.0,0.00300001]
[1763067149282,0.4839135,98410.0,98390.0,0.00300001]
[1763067149283,0.01894866,98400.0,98390.0,1e-08]
[1763067149485,0.01894866,98399.0,98390.0,0.00100001]
[1763067149686,0.20323344,98411.0,98390.0,0.00100001]
[1763067149687,0.323,98419.0,98391.0,0.09816915]
[1763067149911,0.02461544,98418.0,98392.0,0.09816915]
[1763067150260,0.4839135,98410.0,98390.0,0.00100001]
[1763067150391,0.4839135,98402.0,98390.0,0.00200001]
[1763067150597,0.20326486,98394.0,98390.0,0.00200001]
[1763067150865,0.01186,98391.0,98390.0,0.00100001]
[1763067151060,0.01186,98391.0,98390.0,0.00300001]
[1763067151584,0.01186,98391.0,98390.0,1e-08]
[1763067151585,0.03081215,98391.0,98390.0,1e-08]
[1763067151787,0.03081215,98391.0,98390.0,0.00100001]
[1763067151982,0.03081215,98391.0,98390.0,1e-08]
[1763067152410,0.03648435,98391.0,98390.0,0.00200001]
[1763067152616,0.02462435,98391.0,98390.0,0.00200001]
[1763067152781,0.02462435,98391.0,98390.0,0.00300001]
[1763067153172,0.03648435,98391.0,98390.0,0.00300001]